[Event "*** Titled Tuesday Blitz"]
[Site "Chess.com"]
[Date "2018.12.04"]
[Round "3"]
[White "ChessQueen"]
[Black "GulamaliRises"]
[Result "0-1"]
[WhiteElo "2563"]
[BlackElo "2664"]
[TimeControl "180+2"]
[EndTime "13:37:25 PST"]
[Termination "GulamaliRises won by resignation"]

1. e4 {[%clk 0:03:01.9]} 1... c5 {[%clk 0:03:00.1]} 2. c3 {[%clk 0:03:01.9]}
2... Nf6 {[%clk 0:02:57.5]} 3. e5 {[%clk 0:03:03]} 3... Nd5 {[%clk 0:02:59]} 4.
d4 {[%clk 0:03:04.2]} 4... cxd4 {[%clk 0:03:00.9]} 5. Nf3 {[%clk 0:03:05.5]}
5... Nc6 {[%clk 0:03:02]} 6. cxd4 {[%clk 0:03:06.8]} 6... d6 {[%clk 0:03:02.3]}
7. Bc4 {[%clk 0:03:08.3]} 7... e6 {[%clk 0:03:02.8]} 8. O-O {[%clk 0:03:07.4]}
8... Be7 {[%clk 0:03:03.8]} 9. Qe2 {[%clk 0:03:08.6]} 9... O-O {[%clk
0:03:03.2]} 10. Nc3 {[%clk 0:03:09.7]} 10... Nxc3 {[%clk 0:03:01.9]} 11. bxc3
{[%clk 0:03:11.6]} 11... dxe5 {[%clk 0:03:03.2]} 12. dxe5 {[%clk 0:03:13]} 12...
Qc7 {[%clk 0:02:50]} 13. Qe4 {[%clk 0:03:11.6]} 13... Rd8 {[%clk 0:02:32.5]} 14.
Re1 {[%clk 0:03:01.3]} 14... b6 {[%clk 0:01:59]} 15. Qg4 {[%clk 0:02:58.2]}
15... Na5 {[%clk 0:01:45.6]} 16. Bh6 {[%clk 0:02:43.9]} 16... g6 {[%clk
0:01:46.3]} 17. Bf1 {[%clk 0:02:29.9]} 17... Bb7 {[%clk 0:01:46.2]} 18. Ng5
{[%clk 0:02:23.3]} 18... Rac8 {[%clk 0:01:31.3]} 19. Qf4 {[%clk 0:01:56.9]}
19... Bf8 {[%clk 0:01:08.1]} 20. Qh4 {[%clk 0:01:57.3]} 20... Be7 {[%clk
0:00:43.9]} 21. Re3 {[%clk 0:01:57.9]} 21... Nc4 {[%clk 0:00:30.5]} 22. Rh3
{[%clk 0:01:58.5]} 22... Nxe5 {[%clk 0:00:23.6]} 23. Bf8 {[%clk 0:01:29.1]}
23... h5 {[%clk 0:00:23.1]} 24. Bxe7 {[%clk 0:01:25.4]} 24... Qxe7 {[%clk
0:00:24.2]} 25. Be2 {[%clk 0:01:22.2]} 25... Kg7 {[%clk 0:00:17]} 26. Qg3 {[%clk
0:01:08.5]} 26... Qf6 {[%clk 0:00:16.3]} 27. Rxh5 {[%clk 0:00:36.4]} 27... gxh5
{[%clk 0:00:12]} 28. Bxh5 {[%clk 0:00:34.7]} 28... Ng6 {[%clk 0:00:11.3]} 29.
Re1 {[%clk 0:00:32.7]} 29... Rxc3 {[%clk 0:00:11.7]} 30. f3 {[%clk 0:00:32.1]}
30... Rcd3 {[%clk 0:00:04.6]} 31. Bxg6 {[%clk 0:00:21.1]} 31... Rd1 {[%clk
0:00:04.8]} 32. Nxe6+ {[%clk 0:00:18.8]} 32... fxe6 {[%clk 0:00:04.3]} 33. Bc2+
{[%clk 0:00:19.5]} 33... Kf8 {[%clk 0:00:05.3]} 34. Bxd1 {[%clk 0:00:20.4]}
34... Qd4+ {[%clk 0:00:06.6]} 35. Qf2 {[%clk 0:00:21.7]} 35... Qxd1 {[%clk
0:00:07.8]} 36. Rxd1 {[%clk 0:00:22.9]} 36... Rxd1+ {[%clk 0:00:09.7]} 37. Qf1
{[%clk 0:00:24.8]} 37... Rxf1+ {[%clk 0:00:10.9]} 38. Kxf1 {[%clk 0:00:26.7]}
38... Bd5 {[%clk 0:00:12.2]} 39. a3 {[%clk 0:00:27.4]} 39... b5 {[%clk
0:00:13.4]} 40. Ke2 {[%clk 0:00:28.6]} 40... a5 {[%clk 0:00:15]} 41. Kd2 {[%clk
0:00:29.7]} 41... b4 {[%clk 0:00:16.5]} 42. axb4 {[%clk 0:00:30.8]} 42... axb4
{[%clk 0:00:18.4]} 43. h4 {[%clk 0:00:32]} 43... e5 {[%clk 0:00:19.3]} 44. h5
{[%clk 0:00:32.1]} 44... Kg7 {[%clk 0:00:20.6]} 45. Kc2 {[%clk 0:00:33.3]} 45...
Kh6 {[%clk 0:00:21.7]} 0-1

[Event "*** Titled Tuesday Blitz"]
[Site "Chess.com"]
[Date "2018.12.04"]
[Round "3"]
[White "mazetofonias"]
[Black "Gabrielian_Artur"]
[Result "1/2-1/2"]
[WhiteElo "2564"]
[BlackElo "2706"]
[TimeControl "180+2"]
[EndTime "13:37:28 PST"]
[Termination "Game drawn - insufficient material"]

1. d4 {[%clk 0:03:01.9]} 1... Nf6 {[%clk 0:03:00.6]} 2. Nf3 {[%clk 0:03:03.3]}
2... e6 {[%clk 0:03:01.4]} 3. Bg5 {[%clk 0:03:04.8]} 3... h6 {[%clk 0:03:00]} 4.
Bh4 {[%clk 0:03:05.3]} 4... c5 {[%clk 0:03:01.3]} 5. e3 {[%clk 0:03:06.1]} 5...
Qb6 {[%clk 0:02:58.9]} 6. Qc1 {[%clk 0:03:06.7]} 6... Nc6 {[%clk 0:02:56.6]} 7.
c3 {[%clk 0:03:07.2]} 7... Be7 {[%clk 0:02:54.2]} 8. Nbd2 {[%clk 0:03:07.9]}
8... d5 {[%clk 0:02:55]} 9. Bd3 {[%clk 0:03:09.3]} 9... Bd7 {[%clk 0:02:55.2]}
10. Rb1 {[%clk 0:03:10.7]} 10... Rc8 {[%clk 0:02:56]} 11. Qd1 {[%clk 0:03:12.2]}
11... O-O {[%clk 0:02:21.1]} 12. O-O {[%clk 0:03:09.7]} 12... Rfe8 {[%clk
0:02:16.5]} 13. Qe2 {[%clk 0:03:07.4]} 13... a6 {[%clk 0:02:09.1]} 14. a3 {[%clk
0:03:06.8]} 14... Qc7 {[%clk 0:02:08.3]} 15. dxc5 {[%clk 0:03:04.3]} 15... e5
{[%clk 0:02:08.5]} 16. Bxf6 {[%clk 0:03:02.6]} 16... Bxf6 {[%clk 0:02:09.1]} 17.
e4 {[%clk 0:03:03.7]} 17... d4 {[%clk 0:02:08.2]} 18. cxd4 {[%clk 0:03:01.7]}
18... exd4 {[%clk 0:02:08.6]} 19. b4 {[%clk 0:03:01.7]} 19... Bg4 {[%clk
0:02:08.4]} 20. h3 {[%clk 0:03:02.4]} 20... Bh5 {[%clk 0:02:09.5]} 21. Nc4
{[%clk 0:03:00.6]} 21... Ne5 {[%clk 0:02:08.1]} 22. Ncxe5 {[%clk 0:03:00.6]}
22... Bxe5 {[%clk 0:02:09.1]} 23. g4 {[%clk 0:03:01.7]} 23... Bg6 {[%clk
0:02:09.6]} 24. Nxe5 {[%clk 0:03:03.1]} 24... Qxe5 {[%clk 0:02:06.3]} 25. f4
{[%clk 0:03:04.1]} 25... Qe7 {[%clk 0:02:04.6]} 26. f5 {[%clk 0:03:02.6]} 26...
Bh7 {[%clk 0:02:05.8]} 27. Kg2 {[%clk 0:03:00.2]} 27... Kh8 {[%clk 0:02:02.5]}
28. Rbe1 {[%clk 0:03:00.6]} 28... f6 {[%clk 0:02:03.5]} 29. h4 {[%clk
0:02:52.9]} 29... a5 {[%clk 0:02:04.1]} 30. Qd2 {[%clk 0:02:51]} 30... axb4
{[%clk 0:02:05.2]} 31. axb4 {[%clk 0:02:52.9]} 31... Bg8 {[%clk 0:02:00.4]} 32.
g5 {[%clk 0:02:52.1]} 32... Qe5 {[%clk 0:01:38.8]} 33. gxh6 {[%clk 0:02:48.6]}
33... gxh6 {[%clk 0:01:40]} 34. Qxh6+ {[%clk 0:02:46]} 34... Bh7 {[%clk
0:01:41]} 35. Qf4 {[%clk 0:02:47.4]} 35... Qe7 {[%clk 0:01:37]} 36. Kh2 {[%clk
0:02:46.7]} 36... b6 {[%clk 0:01:36.4]} 37. Qd6 {[%clk 0:02:43.8]} 37... bxc5
{[%clk 0:01:34.7]} 38. bxc5 {[%clk 0:02:34.4]} 38... Rxc5 {[%clk 0:01:35.8]} 39.
Qxd4 {[%clk 0:02:14]} 39... Rd8 {[%clk 0:01:32.1]} 40. Qe3 {[%clk 0:02:10.6]}
40... Rc3 {[%clk 0:01:32.3]} 41. Rd1 {[%clk 0:02:11.4]} 41... Qd6+ {[%clk
0:01:15.9]} 42. e5 {[%clk 0:02:10.5]} 42... Rxd3 {[%clk 0:01:14.3]} 43. Rxd3
{[%clk 0:01:57.1]} 43... Qxd3 {[%clk 0:01:14.7]} 44. Qxd3 {[%clk 0:01:57.9]}
44... Rxd3 {[%clk 0:01:16.3]} 45. exf6 {[%clk 0:01:54.4]} 45... Rd6 {[%clk
0:01:07.8]} 46. Kg3 {[%clk 0:01:45.1]} 46... Rxf6 {[%clk 0:01:08.4]} 47. Kg4
{[%clk 0:01:46.5]} 47... Kg7 {[%clk 0:01:08.9]} 48. Kg5 {[%clk 0:01:47.2]} 48...
Bg8 {[%clk 0:01:06.3]} 49. Rc1 {[%clk 0:01:44.9]} 49... Bf7 {[%clk 0:01:06.8]}
50. Rc7 {[%clk 0:01:45.3]} 50... Ra6 {[%clk 0:01:07]} 51. h5 {[%clk 0:01:44.3]}
51... Rb6 {[%clk 0:00:18.4]} 52. Ra7 {[%clk 0:01:43.2]} 52... Rc6 {[%clk
0:00:18.9]} 53. Rb7 {[%clk 0:01:43.5]} 53... Ra6 {[%clk 0:00:19.6]} 54. Rd7
{[%clk 0:01:44.8]} 54... Rc6 {[%clk 0:00:18.5]} 55. Ra7 {[%clk 0:01:44.7]} 55...
Rb6 {[%clk 0:00:19.5]} 56. Rc7 {[%clk 0:01:45.4]} 56... Ra6 {[%clk 0:00:20.3]}
57. Rb7 {[%clk 0:01:46.7]} 57... Rc6 {[%clk 0:00:19.4]} 58. h6+ {[%clk
0:01:46.5]} 58... Rxh6 {[%clk 0:00:19]} 59. Rxf7+ {[%clk 0:01:47.7]} 59... Kxf7
{[%clk 0:00:20.2]} 60. Kxh6 {[%clk 0:01:49.2]} 60... Kf6 {[%clk 0:00:21.5]} 61.
Kh7 {[%clk 0:01:50.7]} 61... Kxf5 {[%clk 0:00:22.8]} 1/2-1/2

[Event "*** Titled Tuesday Blitz"]
[Site "Chess.com"]
[Date "2018.12.04"]
[Round "3"]
[White "gmcorrales"]
[Black "Msb2"]
[Result "1-0"]
[WhiteElo "2792"]
[BlackElo "2737"]
[TimeControl "180+2"]
[EndTime "13:37:33 PST"]
[Termination "gmcorrales won by resignation"]

1. e4 {[%clk 0:03:01.9]} 1... e6 {[%clk 0:03:01.4]} 2. d4 {[%clk 0:03:02.1]}
2... d5 {[%clk 0:03:03.3]} 3. e5 {[%clk 0:03:02.1]} 3... c5 {[%clk 0:03:04.1]}
4. c3 {[%clk 0:03:03.5]} 4... Qb6 {[%clk 0:03:05.8]} 5. Nf3 {[%clk 0:03:04.5]}
5... Nc6 {[%clk 0:03:07.1]} 6. a3 {[%clk 0:03:05.6]} 6... c4 {[%clk 0:03:08.7]}
7. Nbd2 {[%clk 0:03:04.6]} 7... Na5 {[%clk 0:03:10.3]} 8. Rb1 {[%clk 0:03:04.4]}
8... Bd7 {[%clk 0:03:11.7]} 9. Be2 {[%clk 0:03:01.1]} 9... Ne7 {[%clk
0:03:12.9]} 10. O-O {[%clk 0:03:01.9]} 10... Qc7 {[%clk 0:03:13.2]} 11. Ne1
{[%clk 0:03:02.3]} 11... Nf5 {[%clk 0:03:09.8]} 12. g3 {[%clk 0:02:56.8]} 12...
Be7 {[%clk 0:03:09.1]} 13. Ng2 {[%clk 0:02:57.3]} 13... h5 {[%clk 0:03:10.4]}
14. Bxh5 {[%clk 0:02:47.8]} 14... g6 {[%clk 0:02:55.9]} 15. Be2 {[%clk
0:02:34.4]} 15... O-O-O {[%clk 0:02:57]} 16. Nf3 {[%clk 0:02:34.3]} 16... Nb3
{[%clk 0:02:56.9]} 17. Bg5 {[%clk 0:02:34.9]} 17... Ba4 {[%clk 0:02:58.1]} 18.
Qe1 {[%clk 0:02:25.4]} 18... b5 {[%clk 0:02:06.5]} 19. Bd1 {[%clk 0:02:23.1]}
19... a5 {[%clk 0:02:07.3]} 20. h4 {[%clk 0:02:17.2]} 20... Kb7 {[%clk
0:02:06.2]} 21. Bxe7 {[%clk 0:01:46]} 21... Qxe7 {[%clk 0:02:08.1]} 22. Ng5
{[%clk 0:01:47.3]} 22... b4 {[%clk 0:01:52.4]} 23. axb4 {[%clk 0:01:45.5]} 23...
axb4 {[%clk 0:01:54.3]} 24. Bxb3 {[%clk 0:01:33.8]} 24... Bxb3 {[%clk
0:01:53.9]} 25. Qd2 {[%clk 0:01:29.4]} 25... Ra8 {[%clk 0:01:46]} 26. Ra1 {[%clk
0:01:30.1]} 26... Kc6 {[%clk 0:01:33]} 27. Ne3 {[%clk 0:01:29.3]} 27... bxc3
{[%clk 0:01:15.6]} 28. bxc3 {[%clk 0:01:29.1]} 28... Ng7 {[%clk 0:00:48.5]} 29.
Qb2 {[%clk 0:01:21.8]} 29... Kb5 {[%clk 0:00:42.7]} 30. Rfb1 {[%clk 0:01:05.9]}
30... Rhb8 {[%clk 0:00:42.1]} 31. Qe2 {[%clk 0:00:46.7]} 31... Kc6 {[%clk
0:00:41.9]} 32. Qf3 {[%clk 0:00:45.8]} 32... Nf5 {[%clk 0:00:31.6]} 33. Nxf5
{[%clk 0:00:45.5]} 33... gxf5 {[%clk 0:00:33.5]} 34. Qh5 {[%clk 0:00:45.7]}
34... Bc2 {[%clk 0:00:27.1]} 35. Rc1 {[%clk 0:00:44.7]} 35... Rxa1 {[%clk
0:00:22.7]} 36. Rxa1 {[%clk 0:00:46.6]} 36... Rb3 {[%clk 0:00:19.9]} 37. Qh8
{[%clk 0:00:42.6]} 37... Rb1+ {[%clk 0:00:13.1]} 38. Rxb1 {[%clk 0:00:41.3]}
38... Bxb1 {[%clk 0:00:15]} 39. Qc8+ {[%clk 0:00:36.7]} 39... Qc7 {[%clk
0:00:13.8]} 40. Qxc7+ {[%clk 0:00:37.3]} 40... Kxc7 {[%clk 0:00:14.8]} 41. f4
{[%clk 0:00:36.3]} 41... Kd7 {[%clk 0:00:15.9]} 42. Nxf7 {[%clk 0:00:32.8]}
42... Ke7 {[%clk 0:00:17.4]} 43. Ng5 {[%clk 0:00:33.1]} 43... Bc2 {[%clk
0:00:18.9]} 44. h5 {[%clk 0:00:33.7]} 44... Ba4 {[%clk 0:00:12.4]} 45. h6 {[%clk
0:00:34.2]} 45... Kf8 {[%clk 0:00:13.9]} 46. Nxe6+ {[%clk 0:00:34.7]} 46... Kg8
{[%clk 0:00:15.8]} 47. Ng5 {[%clk 0:00:34.5]} 1-0

[Event "*** Titled Tuesday Blitz"]
[Site "Chess.com"]
[Date "2018.12.04"]
[Round "3"]
[White "alpasya2009"]
[Black "jefferyx"]
[Result "1-0"]
[WhiteElo "2583"]
[BlackElo "2739"]
[TimeControl "180+2"]
[EndTime "13:37:34 PST"]
[Termination "alpasya2009 won by resignation"]

1. d4 {[%clk 0:03:01.9]} 1... Nf6 {[%clk 0:03:00.8]} 2. c4 {[%clk 0:03:03]} 2...
e6 {[%clk 0:03:02.4]} 3. Nf3 {[%clk 0:03:01.8]} 3... d5 {[%clk 0:03:03.2]} 4. g3
{[%clk 0:03:02.8]} 4... dxc4 {[%clk 0:03:03.8]} 5. Bg2 {[%clk 0:03:03.9]} 5...
a6 {[%clk 0:03:04.7]} 6. O-O {[%clk 0:03:01.7]} 6... Nc6 {[%clk 0:03:05.5]} 7.
e3 {[%clk 0:03:02.4]} 7... Rb8 {[%clk 0:03:02.6]} 8. Nfd2 {[%clk 0:03:01.3]}
8... e5 {[%clk 0:03:04.1]} 9. Bxc6+ {[%clk 0:03:00.7]} 9... bxc6 {[%clk
0:03:05.7]} 10. dxe5 {[%clk 0:03:02.2]} 10... Ng4 {[%clk 0:03:07.2]} 11. Nxc4
{[%clk 0:03:03.4]} 11... Be6 {[%clk 0:02:56.8]} 12. Nbd2 {[%clk 0:02:56.7]}
12... h5 {[%clk 0:02:57.1]} 13. f3 {[%clk 0:02:28.5]} 13... Nh6 {[%clk 0:01:39]}
14. b3 {[%clk 0:02:27.9]} 14... Nf5 {[%clk 0:01:34.5]} 15. Qe2 {[%clk
0:02:15.5]} 15... Qg5 {[%clk 0:01:33.5]} 16. Ne4 {[%clk 0:01:30.8]} 16... Qg6
{[%clk 0:01:34.1]} 17. Kf2 {[%clk 0:01:24]} 17... Bb4 {[%clk 0:01:17.3]} 18. Bd2
{[%clk 0:01:21.4]} 18... Be7 {[%clk 0:01:18]} 19. Ba5 {[%clk 0:01:17.7]} 19...
Rb5 {[%clk 0:00:51.3]} 20. Bxc7 {[%clk 0:01:15.9]} 20... O-O {[%clk 0:00:52.1]}
21. Ned6 {[%clk 0:00:59.4]} 21... h4 {[%clk 0:00:48.5]} 22. g4 {[%clk
0:00:58.6]} 22... h3 {[%clk 0:00:49.9]} 23. Nxb5 {[%clk 0:00:54.6]} 23... axb5
{[%clk 0:00:46.1]} 24. Nd6 {[%clk 0:00:45.2]} 24... Bh4+ {[%clk 0:00:47]} 25.
Kg1 {[%clk 0:00:46.6]} 25... Ne7 {[%clk 0:00:48.9]} 26. Ne4 {[%clk 0:00:36.7]}
26... Bxg4 {[%clk 0:00:43.1]} 27. fxg4 {[%clk 0:00:38.6]} 27... Qxe4 {[%clk
0:00:44.3]} 28. Bd6 {[%clk 0:00:32.8]} 28... Bg5 {[%clk 0:00:21.3]} 29. Qf3
{[%clk 0:00:23.9]} 29... Qg6 {[%clk 0:00:15.1]} 30. Qxh3 {[%clk 0:00:19.3]}
30... Re8 {[%clk 0:00:09.6]} 31. Bxe7 {[%clk 0:00:18.6]} 31... Rxe7 {[%clk
0:00:11.5]} 32. Rf5 {[%clk 0:00:16]} 32... Rd7 {[%clk 0:00:12.4]} 33. Raf1
{[%clk 0:00:10.7]} 33... Rd2 {[%clk 0:00:06.2]} 34. Rxf7 {[%clk 0:00:09.1]}
34... Qxf7 {[%clk 0:00:06]} 35. Rxf7 {[%clk 0:00:11]} 35... Kxf7 {[%clk
0:00:07.9]} 36. Qf3+ {[%clk 0:00:12.5]} 36... Ke7 {[%clk 0:00:08.7]} 37. Qxc6
{[%clk 0:00:11.1]} 37... Bxe3+ {[%clk 0:00:09.9]} 38. Kf1 {[%clk 0:00:12.5]}
38... Rf2+ {[%clk 0:00:10.6]} 39. Ke1 {[%clk 0:00:14]} 39... b4 {[%clk
0:00:12.5]} 40. Qd6+ {[%clk 0:00:13.8]} 40... Kf7 {[%clk 0:00:13.7]} 41. e6+
{[%clk 0:00:15.3]} 1-0

[Event "*** Titled Tuesday Blitz"]
[Site "Chess.com"]
[Date "2018.12.04"]
[Round "3"]
[White "MartinNeu"]
[Black "Alopekos"]
[Result "0-1"]
[WhiteElo "2480"]
[BlackElo "2489"]
[TimeControl "180+2"]
[EndTime "13:37:35 PST"]
[Termination "Alopekos won by resignation"]

1. e4 {[%clk 0:03:01.9]} 1... e5 {[%clk 0:03:00.4]} 2. Nf3 {[%clk 0:03:02.5]}
2... Nc6 {[%clk 0:03:01.6]} 3. Bb5 {[%clk 0:03:02.9]} 3... a6 {[%clk 0:03:02.8]}
4. Ba4 {[%clk 0:03:04.1]} 4... Nf6 {[%clk 0:03:04.1]} 5. O-O {[%clk 0:03:04.7]}
5... b5 {[%clk 0:03:05.7]} 6. Bb3 {[%clk 0:03:03.5]} 6... Bc5 {[%clk 0:03:07.6]}
7. c3 {[%clk 0:03:04]} 7... d6 {[%clk 0:03:07.8]} 8. d4 {[%clk 0:03:05.1]} 8...
Bb6 {[%clk 0:03:09.3]} 9. a4 {[%clk 0:03:06.3]} 9... Bb7 {[%clk 0:03:09.2]} 10.
a5 {[%clk 0:03:06.4]} 10... Nxa5 {[%clk 0:03:07.1]} 11. dxe5 {[%clk 0:02:34.7]}
11... Nxb3 {[%clk 0:03:04.2]} 12. Qxb3 {[%clk 0:02:35.4]} 12... Nxe4 {[%clk
0:02:55.4]} 13. e6 {[%clk 0:02:10.8]} 13... fxe6 {[%clk 0:02:13.3]} 14. Qxe6+
{[%clk 0:02:10.4]} 14... Qe7 {[%clk 0:02:14.3]} 15. Qb3 {[%clk 0:01:51.6]} 15...
O-O-O {[%clk 0:02:02.9]} 16. c4 {[%clk 0:01:48.1]} 16... bxc4 {[%clk 0:01:23.8]}
17. Qxc4 {[%clk 0:01:46.2]} 17... Nxf2 {[%clk 0:01:14.2]} 18. Rxf2 {[%clk
0:01:40.6]} 18... Bxf3 {[%clk 0:01:14.7]} 19. Kf1 {[%clk 0:00:54.8]} 19... Bxf2
{[%clk 0:01:09.6]} 20. gxf3 {[%clk 0:00:52.3]} 20... Qe1+ {[%clk 0:00:20.7]} 21.
Kg2 {[%clk 0:00:53]} 21... Bc5 {[%clk 0:00:22.2]} 22. Qxa6+ {[%clk 0:00:42.9]}
22... Kd7 {[%clk 0:00:22.9]} 23. Qb5+ {[%clk 0:00:42.6]} 23... c6 {[%clk
0:00:23.6]} 24. Qb7+ {[%clk 0:00:39.4]} 24... Ke6 {[%clk 0:00:24.8]} 25. Nd2
{[%clk 0:00:20.6]} 25... Qe2+ {[%clk 0:00:14.7]} 26. Kh3 {[%clk 0:00:20]} 26...
Rhf8 {[%clk 0:00:11.3]} 27. Qxc6 {[%clk 0:00:20]} 27... Rf5 {[%clk 0:00:08]} 28.
Qe4+ {[%clk 0:00:20.5]} 28... Qxe4 {[%clk 0:00:08.7]} 29. Nxe4 {[%clk
0:00:21.7]} 29... Rxf3+ {[%clk 0:00:09.8]} 30. Kg2 {[%clk 0:00:22.6]} 30... Rb3
{[%clk 0:00:06.5]} 31. Ra6 {[%clk 0:00:21.7]} 31... Kd5 {[%clk 0:00:05.4]} 32.
Nc3+ {[%clk 0:00:20.2]} 32... Kc4 {[%clk 0:00:06.6]} 33. Ne4 {[%clk 0:00:16.3]}
33... Re8 {[%clk 0:00:02.7]} 34. Ra4+ {[%clk 0:00:10.8]} 34... Kb5 {[%clk
0:00:02.6]} 35. Nxc5 {[%clk 0:00:12.7]} 35... dxc5 {[%clk 0:00:03.3]} 36. Rg4
{[%clk 0:00:14.6]} 36... g6 {[%clk 0:00:04.1]} 37. Rg5 {[%clk 0:00:15.8]} 37...
Re1 {[%clk 0:00:04.6]} 38. Rg3 {[%clk 0:00:12.6]} 38... Rxg3+ {[%clk 0:00:03.8]}
39. hxg3 {[%clk 0:00:14.3]} 39... Rxc1 {[%clk 0:00:05.4]} 0-1

[Event "*** Titled Tuesday Blitz"]
[Site "Chess.com"]
[Date "2018.12.04"]
[Round "3"]
[White "Chessialist"]
[Black "gkchesstiger"]
[Result "0-1"]
[WhiteElo "2520"]
[BlackElo "2793"]
[TimeControl "180+2"]
[EndTime "13:37:36 PST"]
[Termination "gkchesstiger won by resignation"]

1. e4 {[%clk 0:03:01.9]} 1... e5 {[%clk 0:02:59.2]} 2. Nf3 {[%clk 0:03:02.9]}
2... Nc6 {[%clk 0:02:59.7]} 3. Bb5 {[%clk 0:03:03.9]} 3... a6 {[%clk 0:02:59.1]}
4. Ba4 {[%clk 0:03:05.2]} 4... Nf6 {[%clk 0:02:59.6]} 5. O-O {[%clk 0:03:06.5]}
5... Be7 {[%clk 0:03:00]} 6. Qe2 {[%clk 0:03:07.9]} 6... b5 {[%clk 0:02:58.5]}
7. Bb3 {[%clk 0:03:09.1]} 7... d6 {[%clk 0:02:59.3]} 8. c3 {[%clk 0:03:10.4]}
8... O-O {[%clk 0:02:59.3]} 9. Rd1 {[%clk 0:03:11.5]} 9... Bg4 {[%clk
0:02:59.7]} 10. d3 {[%clk 0:03:12.4]} 10... Na5 {[%clk 0:02:58.4]} 11. Bc2
{[%clk 0:03:13.3]} 11... c5 {[%clk 0:02:59.6]} 12. h3 {[%clk 0:03:14.5]} 12...
Bd7 {[%clk 0:02:55.8]} 13. Nbd2 {[%clk 0:03:15.7]} 13... Re8 {[%clk 0:02:54.3]}
14. Nf1 {[%clk 0:03:16.9]} 14... Bf8 {[%clk 0:02:55.2]} 15. g4 {[%clk 0:03:18]}
15... g6 {[%clk 0:02:52.9]} 16. Ng3 {[%clk 0:03:19.1]} 16... Bg7 {[%clk
0:02:54]} 17. g5 {[%clk 0:03:15.8]} 17... Bxh3 {[%clk 0:02:31.5]} 18. gxf6
{[%clk 0:03:16.1]} 18... Qxf6 {[%clk 0:02:31.3]} 19. Nh2 {[%clk 0:02:30.9]}
19... Qh4 {[%clk 0:02:18.4]} 20. a3 {[%clk 0:02:20.8]} 20... Nc6 {[%clk
0:01:59.3]} 21. Bb3 {[%clk 0:02:16.7]} 21... Be6 {[%clk 0:01:55.2]} 22. Bxe6
{[%clk 0:02:17.1]} 22... fxe6 {[%clk 0:01:54.8]} 23. Qg4 {[%clk 0:02:17.2]}
23... Qxg4 {[%clk 0:01:50.1]} 24. Nxg4 {[%clk 0:02:17.6]} 24... d5 {[%clk
0:01:35.5]} 25. Kg2 {[%clk 0:02:01.9]} 25... h5 {[%clk 0:01:22.4]} 26. Nh2
{[%clk 0:01:54]} 26... Rad8 {[%clk 0:01:23.1]} 27. Bg5 {[%clk 0:01:54.5]} 27...
Rd7 {[%clk 0:01:23.6]} 28. Nf3 {[%clk 0:01:55.7]} 28... Rf8 {[%clk 0:01:20.6]}
29. b4 {[%clk 0:01:47.4]} 29... Rdf7 {[%clk 0:01:18.1]} 30. Nh4 {[%clk
0:01:22.4]} 30... Rxf2+ {[%clk 0:01:17]} 31. Kg1 {[%clk 0:01:24]} 31... Kh7
{[%clk 0:01:14.8]} 32. Rf1 {[%clk 0:01:23.4]} 32... Rxf1+ {[%clk 0:00:53.8]} 33.
Rxf1 {[%clk 0:01:23.7]} 33... Rxf1+ {[%clk 0:00:51.8]} 34. Kxf1 {[%clk
0:01:21.6]} 34... d4 {[%clk 0:00:52.7]} 35. Bd2 {[%clk 0:01:22.8]} 35... dxc3
{[%clk 0:00:40]} 36. Bxc3 {[%clk 0:01:23.8]} 36... cxb4 {[%clk 0:00:40.4]} 37.
axb4 {[%clk 0:01:24.6]} 37... g5 {[%clk 0:00:37.4]} 38. Nf3 {[%clk 0:01:25.6]}
38... Kg6 {[%clk 0:00:38]} 39. Bd2 {[%clk 0:01:24.6]} 39... Bf6 {[%clk 0:00:38]}
40. Ke2 {[%clk 0:01:23.2]} 40... g4 {[%clk 0:00:38.9]} 41. Nh2 {[%clk
0:01:24.4]} 41... h4 {[%clk 0:00:40.2]} 42. Nxg4 {[%clk 0:01:13]} 42... hxg3
{[%clk 0:00:40.9]} 43. Nxf6 {[%clk 0:01:14.1]} 43... Kxf6 {[%clk 0:00:41.7]} 44.
Kf3 {[%clk 0:01:15.5]} 44... Nd4+ {[%clk 0:00:38.2]} 45. Kxg3 {[%clk 0:01:16.7]}
45... Nb3 {[%clk 0:00:39.5]} 46. Be3 {[%clk 0:01:16.1]} 46... a5 {[%clk
0:00:40.3]} 47. bxa5 {[%clk 0:01:15.8]} 47... Nxa5 {[%clk 0:00:41.6]} 48. d4
{[%clk 0:01:15.4]} 48... Nc4 {[%clk 0:00:39.1]} 49. dxe5+ {[%clk 0:01:10.6]}
49... Kxe5 {[%clk 0:00:39.8]} 50. Bc5 {[%clk 0:01:12.3]} 50... Kxe4 {[%clk
0:00:41]} 51. Kf2 {[%clk 0:01:13]} 51... Kd3 {[%clk 0:00:42.3]} 52. Ke1 {[%clk
0:01:13.1]} 52... e5 {[%clk 0:00:43.7]} 53. Kd1 {[%clk 0:01:14.3]} 53... e4
{[%clk 0:00:44.9]} 54. Ke1 {[%clk 0:01:15.8]} 54... e3 {[%clk 0:00:46.2]} 55.
Bb4 {[%clk 0:01:16.8]} 55... e2 {[%clk 0:00:47]} 56. Bc5 {[%clk 0:01:15.7]}
56... Ne5 {[%clk 0:00:47.7]} 57. Kf2 {[%clk 0:01:17]} 57... Kd2 {[%clk
0:00:48.6]} 58. Bb4+ {[%clk 0:01:18.1]} 58... Kd1 {[%clk 0:00:49.7]} 59. Ke3
{[%clk 0:01:18.2]} 59... Nc6 {[%clk 0:00:50.7]} 60. Bd2 {[%clk 0:01:17.2]} 60...
e1=Q+ {[%clk 0:00:51.5]} 61. Bxe1 {[%clk 0:01:17.9]} 61... Kxe1 {[%clk
0:00:52.8]} 0-1